Cogmind - Beta 10.2 @@@ ROGUE MODE // 2021.05.23 @ 15:08:58 Player: Togure Result: Self-destructed Performance ------------- Evolutions (2) 1000 Regions Visited (5) 1000 Robots Destroyed (22) 110 Value Destroyed (612) 612 Prototype IDs (4) 80 Alien Tech Used (0) 0 Bonus (300) 300 TOTAL SCORE: 3102 Bonus ------- Aligned with FarCom 300 Cogmind --------- Core Integrity 320/550 Matter 300/300 Energy 100/100 System Corruption 0% Temperature Cool (0) Movement Walking (90) Location -8/Materials Parts ------- > --- POWER (1) -------- (None) > --- PROPULSION (4) --- Potential Leg Potential Leg > --- UTILITY (4) ------ Enhanced Optical Array Signal Interpreter > --- WEAPON (2) ------- Longsword +1 > --- INVENTORY (4) ---- Improved Aluminum Leg Hardened Heavy Armor Plating 8R-AWN's Boregun Peak State ------------ > --- POWER ------------ Light Deuterium Engine > --- PROPULSION ------- Improved Aluminum Leg Improved Aluminum Leg Potential Leg Potential Leg > --- UTILITY ---------- Humpback Enhanced Optical Array Signal Interpreter > --- WEAPON ----------- Assault Rifle 8R-AWN's Boregun > --- INVENTORY -------- Improved Aluminum Leg Coolant Injector Core Analyzer Hardened Heavy Armor Plating Lightning Gun Arc Projector Advanced Beam Rifle Gatling Laser Assault Rifle Longsword +1 [Rating: 49] Favorites ----------- Power Ion Engine Engine Ion Engine Propulsion Potential Leg Leg Potential Leg Utility Small Storage Unit Storage Small Storage Unit Processor Enhanced Optical Array Weapon Assault Rifle Ballistic Gun Assault Rifle Slashing Weapon Longsword +1 Build | -11 -10 -10 -10 -9 -8 ------- Run | Scr Mat Min Exi Min Mat Slots Evolved 4 | . . . . . 4 Power . | . . . . . . Propulsion 2 | . . . . . 2 Utility 2 | . . . . . 2 Weapon . | . . . . . . Parts Attached 21 | 6 3 . 3 2 7 Power 3 | 1 . . . 1 1 Engine 3 | 1 . . . 1 1 Core . | . . . . . . Reactor . | . . . . . . Propulsion 9 | 2 2 . 2 . 3 Treads . | . . . . . . Leg 9 | 2 2 . 2 . 3 Wheel . | . . . . . . Hover . | . . . . . . Flight . | . . . . . . Utility 4 | 1 . . 1 . 2 Device . | . . . . . . Storage 2 | 1 . . 1 . . Processor 2 | . . . . . 2 Hackware . | . . . . . . Protection . | . . . . . . Artifact . | . . . . . . Weapon 5 | 2 1 . . 1 1 Energy Gun . | . . . . . . Energy Cannon . | . . . . . . Ballistic Gun 4 | 2 1 . . 1 . Ballistic Cannon . | . . . . . . Launcher . | . . . . . . Special Weapon . | . . . . . . Impact Weapon . | . . . . . . Slashing Weapon 1 | . . . . . 1 Piercing Weapon . | . . . . . . Special Melee Weapon . | . . . . . . Unidentified Prototypes 4 | . 1 . 2 . 1 Parts Lost 7 | . . . . 1 6 Power 2 | . . . . 1 1 Propulsion 3 | . . . . . 3 Utility 1 | . . . . . 1 Weapon 1 | . . . . . 1 Highest Loss Streak 4 | . . . . 1 4 Average Slot Usage (%) 83 | . 85 85 85 78 83 Engine 11 | . 14 14 14 9 8 Leg 30 | . 28 28 28 28 34 Storage 12 | . 14 14 14 14 9 Processor 5 | . . . . . 18 Ballistic Gun 21 | . 28 28 28 25 8 Slashing Weapon 1 | . . . . . 4 Naked Turns . | . . . . . . Heaviest Build 93 | 13 17 17 93 91 93 Greatest Support 88 | 20 26 26 60 60 88 Greatest Overweight (x) 1 | . . . 1 1 1 Average Overweight (x) . | . . . . 1 . Largest Inventory Capacity 24 | 6 6 6 24 24 24 Average Capacity 14 | 5 6 6 9 24 23 Most Carried 13 | 3 5 4 6 13 13 Average Carried 5 | . . 3 4 7 11 Final Capacity 24 | 6 6 6 24 24 4 Final Carried 13 | . 3 4 5 13 4 Class Distribution -------------------- 54% | Mutant 45% | Hauler-Mutant Dominant Class ---------------- Mutant | -10/Materials Mutant | -10/Mines Mutant | -10/Exiles Hauler-Mutant | -9/Mines Hauler-Mutant | -8/Materials Resources | -11 -10 -10 -10 -9 -8 ----------- Run | Scr Mat Min Exi Min Mat Matter Collected 724 | 164 132 48 . 130 250 Remotely . | . . . . . . Salvage Created 858 | . 102 109 . 114 533 Parts 48 | . 8 3 . 13 24 Haulers Intercepted . | . . . . . . Recyclers Shooed 2 | . . . . 1 1 Parts Field Recycled . | . . . . . . Retrieved Matter . | . . . . . . Parts Self-Destructed . | . . . . . . Prevented . | . . . . . . Kills | -11 -10 -10 -10 -9 -8 ------- Run | Scr Mat Min Exi Min Mat Combat Hostiles Destroyed 16 | . 2 2 . 4 8 Melee 4 | . . . . . 4 Guns 12 | . 2 2 . 4 4 Classes Destroyed 7 | . 2 . . 2 3 Worker 2 | . 1 . . . 1 Builder 3 | . . . . 2 1 Operator 1 | . . . . . 1 Swarmer 4 | . . . . 4 . Grunt 9 | . 2 2 . . 5 Sentry 2 | . . . . . 2 Hunter 1 | . . . . . 1 Best Kill Streak 6 | . 2 2 . 6 4 Combat Bots Only 4 | . 2 2 . 4 3 Max Kills in Single Turn 2 | . 1 2 . 2 2 Gunslinging 1 | . . 1 . 1 . Exploded . | . . . . . . Melee 1 | . . . . . 1 Uniques/NPCs Destroyed . | . . . . . . Combat | -11 -10 -10 -10 -9 -8 -------- Run | Scr Mat Min Exi Min Mat Damage Taken 1926 | . 147 50 . 299 1430 Core 313 | . 18 . . 65 230 Absorbed by Shields . | . . . . . . Core Remaining (%) 83 | 100 . . . 66 . Volleys Fired 38 | . 6 2 . 12 18 Largest 2 | . 2 2 . 2 2 Hottest 50 | . 40 50 . 50 50 Shots Fired 76 | . 12 4 . 24 36 Gun 76 | . 12 4 . 24 36 Cannon . | . . . . . . Launcher . | . . . . . . Special . | . . . . . . Kinetic 76 | . 12 4 . 24 36 Thermal . | . . . . . . Explosive . | . . . . . . Electromagnetic . | . . . . . . Robot Hit Streak 10 | . 6 10 . 2 9 Robot Miss Streak 6 | . 3 . . 6 5 Penetration Max 1 | . . . . . 1 Secondary Targets 4 | . 1 1 . 2 . Max Gunslinging Chain 1 | . 1 1 . 1 . Shots Hit Robots 56 | . 6 4 . 9 37 Core Hits 33 | . 4 4 . 7 18 Critical Hits 13 | . . . . 1 12 Critical Kills 4 | . . . . 1 3 Critical Parts Destroyed 8 | . . . . . 8 Melee Attacks 18 | . . . . . 18 Impact . | . . . . . . Slashing 18 | . . . . . 18 Piercing . | . . . . . . Sneak Attacks 4 | . . . . . 4 Combat Hostiles 1 | . . . . . 1 Follow-up Attacks . | . . . . . . Damage Inflicted 1884 | . 88 77 . 154 1565 Guns 758 | . 81 72 . 154 451 Cannons . | . . . . . . Explosions . | . . . . . . Melee 1114 | . . . . . 1114 Ramming 12 | . 7 5 . . . Kinetic 758 | . 81 72 . 154 451 Thermal . | . . . . . . Explosive . | . . . . . . Electromagnetic . | . . . . . . Impact . | . . . . . . Slashing 1114 | . . . . . 1114 Piercing . | . . . . . . Highest Corruption 1 | . . . . 1 . Average Corruption 1 | . . . . 1 . Corruption Purged . | . . . . . . Effects 1 | . . . . 1 . Energy Discharges 1 | . . . . 1 . Overload Shots . | . . . . . . Overflow Damage 350 | . . . . . 350 Projectiles . | . . . . . . Explosions . | . . . . . . Melee 350 | . . . . . 350 Knockbacks . | . . . . . . Impact . | . . . . . . Kinetic . | . . . . . . Secondary . | . . . . . . Self-Inflicted Damage 3 | . 3 . . . . Shots . | . . . . . . Rammed 1 | . 1 . . . . Targets Rammed 3 | . 1 2 . . . Kicked 2 | . . 2 . . . Crushed . | . . . . . . Highest Temperature 22 | . . 22 . . 9 Average Temperature 12 | . . 15 . . 9 Received Heat Transfer 525 | . 36 30 . . 459 Siege Activations . | . . . . . . Robots Corrupted . | . . . . . . Combat Hostiles . | . . . . . . Parts Fried . | . . . . . . Impact Corruptions . | . . . . . . Robots Melted . | . . . . . . Combat Hostiles . | . . . . . . Parts Melted . | . . . . . . Heat Transferred . | . . . . . . Parts Sabotaged . | . . . . . . Parts Stolen . | . . . . . . Parts Stripped . | . . . . . . Power Chain Reactions . | . . . . . . Missiles Intercepted . | . . . . . . Alert | -11 -10 -10 -10 -9 -8 ------- Run | Scr Mat Min Exi Min Mat Peak Influence 348 | . 55 86 . 90 348 Initial 35 | . . 21 . . 35 Average 102 | . 39 84 . 78 174 Maximum Alert Level 1 | . . . . . 1 Low Security (%) 83 | 100 100 100 . 100 59 Level 1 16 | . . . . . 40 Level 2 . | . . . . . . Level 3 . | . . . . . . Level 4 . | . . . . . . Level 5 . | . . . . . . High Security . | . . . . . . Max Security . | . . . . . . Squads Dispatched 6 | . 2 . . . 4 Investigation 2 | . 1 . . . 1 Extermination . | . . . . . . Reinforcement 4 | . 1 . . . 3 Assault . | . . . . . . Garrison . | . . . . . . Intercept . | . . . . . . Construction Impeded . | . . . . . . Haulers Reinforced . | . . . . . . Stealth | -11 -10 -10 -10 -9 -8 --------- Run | Scr Mat Min Exi Min Mat Distress Signals 6 | . 1 . . . 5 Communications Jammed . | . . . . . . Distress Signals . | . . . . . . Times Spotted 40 | . 6 2 . 4 28 Peak Tracking Total 10 | . 2 2 . 4 10 Tactical Retreats 7 | . . . . . 7 Traps | -11 -10 -10 -10 -9 -8 ------- Run | Scr Mat Min Exi Min Mat Traps Triggered 3 | . . . . 2 1 Indirectly . | . . . . . . Trap Hack Attempts . | . . . . . . Triggered . | . . . . . . Disarmed . | . . . . . . Reprogrammed . | . . . . . . Reused . | . . . . . . Traps Extracted . | . . . . . . Installed . | . . . . . . Triggered . | . . . . . . Machines | -11 -10 -10 -10 -9 -8 ---------- Run | Scr Mat Min Exi Min Mat Machines Disabled 1 | . . . . . 1 Max in Single Turn 1 | . . . . . 1 Machines Sabotaged . | . . . . . . Garrisons Compromised . | . . . . . . Overloaded Fab Kills . | . . . . . . Fab Network Shutdowns . | . . . . . . Hacking | -11 -10 -10 -10 -9 -8 --------- Run | Scr Mat Min Exi Min Mat Machines Accessed 6 | . 1 . 4 1 . Terminals 1 | . 1 . . . . Fabricators . | . . . . . . Repair Stations . | . . . . . . Recycling Units . | . . . . . . Scanalyzers . | . . . . . . Garrison Access . | . . . . . . Total Hacks 33 | . 3 . 29 1 . Successful 33 | . 3 . 29 1 . Failed . | . . . . . . Catastrophic . | . . . . . . Database Lockouts . | . . . . . . Manual 4 | . . . 4 . . Terminals 3 | . 3 . . . . Fabricators . | . . . . . . Repair Stations . | . . . . . . Recycling Units . | . . . . . . Scanalyzers . | . . . . . . Garrison Access . | . . . . . . Terminal Hacks 33 | . 3 . 29 1 . Record 32 | . 3 . 29 . . Open Door 1 | . . . . 1 . Fabricator Hacks . | . . . . . . Repair Station Hacks . | . . . . . . Recycling Unit Hacks . | . . . . . . Scanalyzer . | . . . . . . Garrison Access Hacks . | . . . . . . Unauthorized Hacks . | . . . . . . Terminals . | . . . . . . Fabricators . | . . . . . . Repair Stations . | . . . . . . Recycling Units . | . . . . . . Scanalyzers . | . . . . . . Garrison Access . | . . . . . . Data Cores Recovered . | . . . . . . Used . | . . . . . . Hacking Detections 1 | . 1 . . . . Full Trace Events 1 | . 1 . . . . Feedback Events . | . . . . . . Feedback Blocked . | . . . . . . Robot Schematics Acquired . | . . . . . . Robots Built . | . . . . . . Matter . | . . . . . . Time . | . . . . . . Total Robot Build Rating . | . . . . . . Part Schematics Acquired . | . . . . . . Parts Built . | . . . . . . Matter . | . . . . . . Time . | . . . . . . Total Part Build Rating . | . . . . . . Parts Repaired . | . . . . . . Time . | . . . . . . Parts Recycled . | . . . . . . Recycled Matter . | . . . . . . Retrieved Matter . | . . . . . . Retrieved Components . | . . . . . . Parts Scanalyzed . | . . . . . . Part Schematics Acquired . | . . . . . . Parts Damaged . | . . . . . . Bothacking | -11 -10 -10 -10 -9 -8 ------------ Run | Scr Mat Min Exi Min Mat Used RIF Installer . | . . . . . . Robots Hacked . | . . . . . . Non-combat . | . . . . . . Combat . | . . . . . . Robot Hacks Applied . | . . . . . . Relay Couplers Released . | . . . . . . Robots Rewired . | . . . . . . Allies Hacked . | . . . . . . Hacks Repelled . | . . . . . . Allies | -11 -10 -10 -10 -9 -8 -------- Run | Scr Mat Min Exi Min Mat Total Allies . | . . . . . . Largest Group . | . . . . . . Highest-Rated Group . | . . . . . . Highest-Rated Ally . | . . . . . . Total Orders . | . . . . . . Ally Attacks . | . . . . . . Total Damage . | . . . . . . Kills . | . . . . . . Allies Corrupted . | . . . . . . Allies Melted . | . . . . . . Intel | -11 -10 -10 -10 -9 -8 ------- Run | Scr Mat Min Exi Min Mat Robot Analysis Total . | . . . . . . Derelict Logs Recovered 1 | . . . . 1 . Drone Launches . | . . . . . . Drone Recoveries . | . . . . . . Exploration | -11 -10 -10 -10 -9 -8 ------------- Run | Scr Mat Min Exi Min Mat Turns Passed 1602 | 89 282 132 446 187 466 Spaces Moved 1067 | 68 192 103 391 101 212 Core 5 | 5 . . . . . Treads . | . . . . . . Legs 1062 | 63 192 103 391 101 212 Wheels . | . . . . . . Hover . | . . . . . . Flight . | . . . . . . Fastest Speed 50 | 50 120 120 90 130 105 Average Speed 119 | 114 120 120 108 130 132 Slowest Speed 140 | 120 120 120 130 130 140 Overloaded Moves . | . . . . . . Propulsion Burnouts . | . . . . . . Robots Hopped . | . . . . . . Cave-ins Triggered . | . . . . . . Time Travels 1 | . . . 1 . . Exploration Rate (%) 32 | 6 30 36 68 31 22 Regions Visited 5 Branch Regions 3 Pre-discovered Areas 2 | . . . 1 1 . Known Exits Taken . | . . . . . . Unknown Exits Taken 5 | 1 1 1 1 1 . Scrap Searched 1 | . . . . 1 . Spaces Dug 3 | . . . . . 3 Terrain Destroyed 10 | . . . . 5 5 Melee 3 | . . . . . 3 Projectile 7 | . . . . 5 2 AOE . | . . . . . . Terrain Rammed . | . . . . . . Walls Destroyed . | . . . . . . Machines Disabled . | . . . . . . Actions | -11 -10 -10 -10 -9 -8 --------- Run | Scr Mat Min Exi Min Mat Total 1309 | 79 232 107 416 133 342 Wait 114 | . 23 . . 10 81 Move 1062 | 67 191 102 390 100 212 Hop . | . . . . . . Pick Up 38 | 6 5 1 12 9 5 Fast Attach . | . . . . . . Attach 17 | 6 1 . 3 2 5 Detach 2 | . 1 . 1 . . Swap 4 | . 2 . . . 2 Drop 13 | . 2 . 10 . 1 Fire 38 | . 6 2 . 12 18 Melee 18 | . . . . . 18 Ram . | . . . . . . Kick 3 | . 1 2 . . . Crush . | . . . . . . Escape Stasis . | . . . . . . Rewire . | . . . . . . Trap . | . . . . . . Miscellaneous . | . . . . . . Route ------- -11/Scrapyard -10/Materials -10/Mines (discovered 2 exits: [*Mat] / *Exi) -10/Exiles -9/Mines -8/Materials History --------- Turn | Location | Event 2 | -11/Scrapyard | Discovered new exit (range 16) 90 | -11/Scrapyard | Entered Materials 221 | -10/Materials | Met 8R-AWN 300 | -10/Materials | Build established: Mutant 328 | -10/Materials | Found Prototype Ballistic Gun 332 | -10/Materials | Identified 8R-AWN's Boregun 339 | -10/Materials | Discovered new exit (range 16) 372 | -10/Materials | Entered Mines 375 | -10/Mines | Followed 8R-AWN into the Mines 451 | -10/Mines | Discovered new exit (range 13) 499 | -10/Mines | Discovered new exit (range 5) 504 | -10/Mines | Entered Exiles 533 | -10/Exiles | Welcomed by 8R-AWN 560 | -10/Exiles | Met EX-HEX 597 | -10/Exiles | Met EX-BIN 612 | -10/Exiles | Aligned with FarCom system 614 | -10/Exiles | Given EX-Vault access code 683 | -10/Exiles | Opened EX-Vault 688 | -10/Exiles | Found Prototype Leg 690 | -10/Exiles | Found Prototype Leg 716 | -10/Exiles | Warned to stay clear of 0b10 Research branches 718 | -10/Exiles | Identified Potential Leg (x2) 739 | -10/Exiles | Found Prototype Device 744 | -10/Exiles | Found Prototype Slashing Weapon 745 | -10/Exiles | Identified Chronowheel 745 | -10/Exiles | Activated Chronowheel 745 | -10/Exiles | Spacetime reconverged on an earlier point 805 | -10/Exiles | Met EX-DEC 828 | -10/Exiles | Learned location of Zion (-6) 934 | -10/Exiles | Discovered new exit (range 14) 950 | -10/Exiles | Stole two prototypes: Potential Leg, Longsword +1 950 | -10/Exiles | Entered Mines 1049 | -9/Mines | Met a Derelict who couldn't figure out how to use a Trap Extractor 1114 | -9/Mines | Discovered new exit (range 15) 1137 | -9/Mines | Entered Materials 1137 | -8/Materials | Evolved 4 slots: Propulsion x2, Utility x2 1180 | -8/Materials | Build established: Hauler-Mutant 1352 | -8/Materials | Identified Longsword +1 1603 | -8/Materials | Self-destructed Last Messages --------------- 01587_ O-16 Technician: "IFF HANDSHAKE FAILED. SECURING TERMINAL." 01587_ Y-45 Defender Hvy. Assault Rifle severed. 01589_ Y-45 Defender destroyed. 01590_ U-05 Engineer lays Concrete. 01591_ Penetrated by Slug. 01591_ Critical hit. 01591_ Lgt. Deuterium Engine destroyed. 01594_ Triggered Alarm Trap. 01594_ An alarm sounds. 01594_ ALERT: Alarm triggered, dispatching investigation squad. 01595_ ALERT: Hostiles spotted, dispatching reinforcements to Terminal M003. 01597_ Carbon-fiber Leg destroyed. 01599_ R-06 Scavenger collects Lgt. Treads. 01601_ W-25 Informer sends out distress signal. 01602_ R-06 Scavenger collects Hvy. Assault Rifle. 01602_ U-05 Engineer lays Concrete. 01602_ Humpback destroyed. 01603_ Slug penetrates Wall. 01603_ U-05 Engineer lays Concrete. Map ----- +----------------------------------------------------+ | ?????????????????##### % # #???????????? | | ?????????????????????# % # ##??????????? | | ?????????????????????# + [ !!!T#??????????? | | ?????????????????????# # !! ##??????????? | | ?????????????????????# # !! #???????????? | | ?????????????????????# #########???????????? | | ?????????????????????# #???????????????????? | | ?????????????????????# #???????????????????? | | ????????????????????## #???????????????????? | | ????????????????????## h #???????????????????? | | ????????????????????## #???????????????????? | | ?????????????????????# w #???????????????????? | | ?????????????????????# #???????????????????? | | ?????????????????????# u#???????????????????? | | ?????????????????????# #???????????????????? | | ?????????????????????# #???????????????????? | | ?????????????????????#= #???????????????????? | | ?????????????????????# % #???????????????????? | | ?????????????????????# ru#???????????????????? | | ?????????????????????# #???????????????????? | | ???????????????????###gg #?????????###???????? | | ???????????????????# ###+### #####???? | | ???????????????????# ???? | | ???????????????????# k Y ???? | | ???????????????????#[[[ ???? | | ???????????????????#!@! ####### #####???? | | ???????????????????##w! ##?????????###???????? | | ????????????????????# #????????????????????? | | ????????????????????# #????????????????????? | | ????????????????????#Y #????????????????????? | | ????????????????????# #????????????????????? | | ????????????????????# #????????????????????? | | ????????????????????# #?g??????????????????? | | ???????????????????? #g???????????????????? | | ???????????????????? h????????????????????? | | ???????????????????? #????????????????????? | | ????????????????????# #????????????????????? | | ????????????????????# #????????????????????? | | ????????????????????? k #????????????????????? | | ????????????????????? #????????????????????? | | ????????????????????? #????????????????????? | | ????????????????????? a#????????????????????? | | ????????????????????? #????????????????????? | | ????????????????????? #????????????????????? | | ????????????????????? #????????????????????? | | ????????????????????? ?????????????????????? | | ????????????????????? ?????????????????????? | | ?????????????????????????????????????????????? | | ?????????????????????????????????????????????? | | ?????????????????????????????????????????????? | +----------------------------------------------------+ Best States ------------- Heat Dissipation 31 Energy Generation 14 Energy Capacity 250 Matter Stores 300 Matter Capacity 300 Sight Range 22 Terrain Scan Density 10 Evasion (%) 42 Item Schematics ----------------- None Robot Schematics ------------------ None Fabricated ------------ Nothing Alien Tech Used ----------------- None Achievements -------------- None Challenges ------------ None Game ------ Seed CoreFlakChip Manual? 0 Play Time 00:22:18 Cumulative 20.3 hours Start 2021.05.23 @ 14:35:28 End 2021.05.23 @ 15:08:58 Sessions 1 Manual Loads 0 Difficulty Rogue Special Mode None Game No. 47 Rogue 47 Adventurer 0 Explorer 0 Win Type - Total 0 Types 0/0/0/0/0/0/0/0/0 Lore% 19 Gallery% 20 Achievement% 17 Wizard Run 0 Options --------- ASCII 0 Keyboard 0 Movement Numpad Keybinds 0 Fullscreen 1 Font 24/Smallcaps Map View 76x50 Tactical HUD 1 Map Filters NONE Filters NONE Steam 1 RUN: dd918d2c-1cac-47df-bb37-f4c1e1d364f3